Workbook

Sheet Пр.№4
F3: Приложение №2
C4: к Решению Совета депутатов Борковского сельского поселения
C5: " Об утверждении годового отчета за 2016 год Борковского сельского
C6: поселения " от 2017 №
A13: Ведомственная структура расходов бюджета Борковского сельского поселения
A14: за 2016 год
J16: (тыс. рублей)
A17: Наименование | C17: Мин | D17: Рз | E17: ПР | F17: ЦСР | G17: ВР | H17: Сумма | K17: 2009 год | L17: 2010 год
A18: Администрация Борковского сельского поселения | C18: 335 | H18: план | I18: факт | J18: % исполнения
A20: Общегосударственные вопросы | C20: 335 | D20: 01 | H20: =H23+H36+H76+H86+H91 -> 4432.9 | I20: =I23+I36+I76+I86+I91 -> 4425.7 | J20: 100,16 | K20: =K23+#REF!+#REF!+K36+#REF!++#REF!+#REF!+#REF!+#REF! ->  | L20: =L23+#REF!+#REF!+L36+#REF!++#REF!+#REF!+#REF!+#REF! -> 
A21: Функционирование высшего должностного лица
A22: субъекта Российской Федерации и
A23: муниципального образования | C23: 335 | D23: =D$20 -> 01 | E23: 02 | H23: =H27 -> 670.1 | I23: =I27 -> 670.1 | J23: =H23/I23*100 -> 100 | K23: =#REF! ->  | L23: =#REF! -> 
A24: Руководство и управление в сфере установленных функций
A25: органов государственной власти субъектов Российской
A26: Федерации и органов местного самоуправления | C26: 335 | D26: 01 | E26: 02 | F26: 20 1 00 00000 | H26: =H27 -> 670.1 | I26: =I27 -> 670.1 | J26: 100
A27: Глава муниципального образования | C27: 335 | D27: =D$20 -> 01 | E27: =E$23 -> 02 | F27: 20 1 00 01000 | H27: =H28+H31+H32 -> 670.1 | I27: =I28+I31+I32 -> 670.1 | J27: 100 | K27: =K28 -> 707 | L27: =L28 -> 724
A28: Фонд оплаты труда государственных (муниципальных) органов | C28: 335 | D28: =D$20 -> 01 | E28: =E$23 -> 02 | F28: 20 1 00 01000 | G28: 121 | H28: 467 | I28: 467 | J28: 100 | K28: 707 | L28: 724
A29: Взносы по обязательном у социальному страхованию на выплаты
A30: денежного содержания и иные выплаты работникам
A31: государственных (муниципальных) органов | C31: 335 | D31: 01 | E31: 02 | F31: 20 1 00 01000 | G31: 129 | H31: 163 | I31: 163 | J31: 100
A32: Иные выплаты персоналу, за исключением фонда оплаты труда | C32: 335 | D32: =D$20 -> 01 | E32: =E$23 -> 02 | F32: 20 1 00 01000 | G32: 122 | H32: 40.1 | I32: 40.1 | J32: 100
A33: Функционирование Правительства Российской
A34: Федерации, высших исполнительных органов
A35: государственной власти субъектов Российской
A36: Федерации, местных администраций | C36: 335 | D36: =D$20 -> 01 | E36: 04 | H36: =H38+H58+H71 -> 3540.8 | I36: =I38+I58+I71 -> 3534.6 | J36: 100,18 | K36: =#REF! ->  | L36: =#REF! -> 
A37: Расходы на содержание аппарата органов местного | K37: =#REF! ->  | L37: =#REF! -> 
A38: самоуправления | C38: 335 | D38: =D$20 -> 01 | E38: =E36 -> 04 | F38: 20 2 00 00000 | H38: =H39+H43+H46+H45+H42+H55+H56+H57+H54 -> 3384 | I38: =I39+I42+I43+I45+I46+I54+I55+I56+I57 -> 3377.8 | J38: 100,18
A39: Фонд оплаты труда государственных (муниципальных) органов | C39: 335 | D39: =D$20 -> 01 | E39: 04 | F39: 20 2 00 01000 | G39: 121 | H39: 1707.8 | I39: 1707.8 | J39: 100
A40: Взносы по обязательном у социальному страхованию на выплаты
A41: денежного содержания и иные выплаты работникам
A42: государственных (муниципальных) органов | C42: 335 | D42: 01 | E42: 04 | F42: 20 2 00 01000 | G42: 129 | H42: 520.8 | I42: 520.8 | J42: 100
A43: Иные выплаты персоналу, за исключением фонда оплаты труда | C43: 335 | D43: =D$20 -> 01 | E43: 04 | F43: 20 2 00 01000 | G43: 122 | H43: 81.6 | I43: 81.6 | J43: 100
A44: Закупка товаров, работ, услуг в области информационных
A45: технологий | C45: 335 | D45: 01 | E45: 04 | F45: 20 2 00 01000 | G45: 242 | H45: 298.1 | I45: 298.1 | J45: 100
A46: Прочая закупка товаров,работ и услуг для муниципальных нужд | C46: 335 | D46: =D$20 -> 01 | E46: =E36 -> 04 | F46: 20 2 00 01000 | G46: 244 | H46: 706.3 | I46: 700.1 | J46: 100,89
A47: Областной резервный фонд на ликвидацию угрозы и
A48: последствий чрезвычайных ситуаций | D48: =D$20 -> 01 | E48: =#REF! ->  | F48: =#REF! ->  | H48: =H49 -> 0 | K48: =K49 -> 0 | L48: =L49 -> 0
A49: Прочие расходы | D49: =D$20 -> 01 | E49: =#REF! ->  | F49: =#REF! ->  | G49: 013 | H49: =3317-3317 -> 0 | K49: =3543-3543 -> 0 | L49: =3773-3773 -> 0
A50: Исполнение судебных актов РФ и мировых соглашений по возме
A51: щению вреда, причиненного в результате незаконных действий
A52: (бездействий) органов государственной власти либо должностных
A53: лиц этих органов, а также в результате деятельности казенных
A54: учреждений | C54: 335 | D54: 01 | E54: 04 | F54: 20 2 00 01000 | G54: 831 | H54: 4 | I54: 4 | J54: 100
A55: Уплата налога на имущество организаций | C55: 335 | D55: =D$20 -> 01 | E55: 04 | F55: 20 2 00 01000 | G55: 851 | H55: 2 | I55: 2 | J55: 100
A56: Уплата прочих налогов, сборов и иных обязательных платежей | C56: 335 | D56: =D$20 -> 01 | E56: 04 | F56: 20 2 00 01000 | G56: 852 | H56: 3.3 | I56: 3.3 | J56: 100
A57: Уплата иных платежей | C57: 335 | D57: =D$20 -> 01 | E57: 04 | F57: 20 2 00 01000 | G57: 853 | H57: 60.1 | I57: 60.1 | J57: 100
A58: Субвенция на возмещению затрат по содержанию штатных | C58: 335 | D58: 01 | E58: 04 | F58: 20 2 00 70280 | H58: =H63+H67+H66 -> 151.7 | I58: =I63+I67+I66 -> 151.7 | J58: 100
A59: единиц, осуществляющих переданные отдельные государствен-
A60: ные полномочия области по организации деятельности по сбору
A61: ( в том числе раздельному сбору) и транспортированию твердых
A62: коммунальных отходов городских и сельских поселений
A63: Фонд оплаты труда государственных (муниципальных) органов | C63: 335 | D63: 01 | E63: 04 | F63: 20 2 00 70280 | G63: 121 | H63: 111.6 | I63: 111.6 | J63: 100
A64: Взносы по обязательном у социальному страхованию на выплаты
A65: денежного содержания и иные выплаты работникам
A66: государственных (муниципальных) органов | C66: 335 | D66: 01 | E66: 04 | F66: 20 2 00 70280 | G66: 129 | H66: 32.6 | I66: 32.6 | J66: 100
A67: Прочая закупка товаров,работ и услуг для муниципальных нужд | C67: 335 | D67: 01 | E67: 04 | F67: 20 2 00 70280 | G67: 244 | H67: 7.5 | I67: 7.5 | J67: 100
A68: Иные межбюджетные трансферты городским и сельским
A69: поселениям области на частичную компенсацию дополни
A70: тельных расходов на повышение оплаты труда работников
A71: бюджетной сферы | C71: 335 | D71: 01 | E71: 04 | F71: 20 2 00 71420 | H71: 5.1 | I71: 5.1 | J71: 100
A72: Фонд оплаты труда государственных (муниципальных) органов | C72: 335 | D72: 01 | E72: 04 | F72: 20 2 00 71420 | G72: 121 | H72: 3.9 | I72: 3.9 | J72: 100
A73: Взносы по обязательном у социальному страхованию на выплаты
A74: денежного содержания и иные выплаты работникам
A75: государственных (муниципальных) органов | C75: 335 | D75: 01 | E75: 04 | F75: 20 2 00 71420 | G75: 129 | H75: 1.2 | I75: 1.2 | J75: 100
A76: Обеспечение деятельности финансовых, налоговых | C76: 335 | D76: 01 | E76: 06 | H76: =+H84 -> 217,0 | I76: =+I84 -> 217,0 | J76: 100
A77: и таможенных органов и органов финансового (финансово-
A78: бюджетного) надзора
A79: Межбюджетные трансферты бюджету муниципального района | C79: 335 | D79: 01 | E79: 06 | F79: 20 4 00 00000 | H79: =H84 -> 217,0 | I79: =I84 -> 217,0 | J79: 100
A80: Иные межбюджетные трансферты из бюджетов поселений
A81: бюджету муниципального района на возмещение затрат по
A82: содержанию штатных единиц,осуществляющих переданные
A83: полномочия поселения по внешнему муниципальному
A84: финансовому контролю | C84: 335 | D84: 01 | E84: 06 | F84: 20 4 00 93020 | H84: =+H85 -> 217,0 | I84: =+I85 -> 217,0 | J84: 100
A85: Иные межбюджетные трансферты | C85: 335 | D85: 01 | E85: 06 | F85: 20 4 00 93020 | G85: 540 | H85: 217,0 | I85: 217,0 | J85: =H85/I85*100 -> 100
A86: Резервные фонды | C86: 335 | D86: 01 | E86: 11 | H86: =H89 -> 1 | I86: 0,00
A87: Прочие непрограммные расходы | C87: 335 | D87: 01 | E87: 11 | F87: 20 5 00 00000 | H87: 1 | I87: 0,00
A88: Резервные фонды местных администраций | C88: 335 | D88: 01 | E88: 11 | F88: 20 5 00 25030 | H88: 1 | I88: 0,00
A89: Резервные средства | C89: 335 | D89: 01 | E89: 11 | F89: 20 5 00 25030 | G89: 870 | H89: =H88 -> 1 | I89: 0,00
A91: Другие общегосударственные вопросы | C91: 335 | D91: 01 | E91: 13 | H91: 4 | I91: 4 | J91: 100
A92: Прочие непрограммные расходы | C92: 335 | D92: 01 | E92: 13 | F92: 20 5 00 00000 | H92: =H93 -> 4 | I92: =I93 -> 4 | J92: 100
A93: Содержание и обслуживание казны муниципального образования | C93: 335 | D93: 01 | E93: 13 | F93: 20 5 00 25150 | H93: 4 | I93: 4 | J93: 100
A94: Прочая закупка товаров,работ и услуг для муниципальных нужд | C94: 335 | D94: 01 | E94: 13 | F94: 20 5 00 25150 | G94: 244 | H94: 4 | I94: 4 | J94: 100
A95: Национальная оборона | C95: 335 | D95: 02 | H95: =+H96 -> 178 | I95: =+I96 -> 178 | J95: 100
A96: Мобилизационная и вневойсковая подготовка | C96: 335 | D96: 02 | E96: 03 | H96: =+H98 -> 178 | I96: =+I98 -> 178 | J96: 100
A97: Прочие непрограммные расходы | C97: 335 | D97: 02 | E97: 03 | F97: 20 5 00 00000 | H97: =H98 -> 178 | I97: =I98 -> 178 | J97: 100
A98: Осуществление первичного воинского учета на | C98: 335 | D98: 02 | E98: 03 | F98: 20 5 00 51180 | H98: =H100+H104+H103 -> 178 | I98: =I100+I104+I103 -> 178 | J98: 100
A99: территории,где отсутствуют воинские комиссариаты
A100: Фонд оплаты труда государственных (муниципальных) органов | C100: 335 | D100: 02 | E100: 03 | F100: 20 5 00 51180 | G100: 121 | H100: 129.7 | I100: 129.7 | J100: 100
A101: Взносы по обязательном у социальному страхованию на выплаты
A102: денежного содержания и иные выплаты работникам
A103: государственных (муниципальных) органов | C103: 335 | D103: 02 | E103: 03 | F103: 20 5 00 51180 | G103: 129 | H103: 39.2 | I103: 39.2 | J103: 100
A104: Прочая закупка товаров, работ и услуг для муниципальных нужд | C104: 335 | D104: 02 | E104: 03 | F104: 20 5 00 51180 | G104: 244 | H104: 9.1 | I104: 9.1 | J104: 100
A105: Национальная безопасность и | C105: 335 | D105: 03 | H105: =H113+H109 -> 144 | I105: =I113+I109 -> 144 | J105: 100
A106: правоохранительная деятельность
A107: Защита населения и территории от чрезвычайных ситуаций
A108: природного и техногенного характера, гражданская оборона | C108: 335 | D108: 03 | E108: 09
A109: Прочие непрограмные расходы | C109: 335 | D109: 03 | E109: 09 | F109: 20 5 00 00000 | H109: =H111 -> 28.5 | I109: =I111 -> 28.5 | J109: 100
A110: Расходы на выполнение работ по разработке расчета размера вреда
A111: для физических и юридических лиц | C111: 335 | D111: 03 | E111: 09 | F111: 20 5 00 14020 | H111: =H112 -> 28.5 | I111: =I112 -> 28.5 | J111: 100
A112: Прочая закупка товаров,работ и услуг для муниципальных нужд | C112: 335 | D112: 03 | E112: 09 | F112: 20 5 00 14020 | G112: 244 | H112: 28.5 | I112: 28.5 | J112: 100
A113: Обеспечение пожарной безопасности | C113: 335 | D113: 03 | E113: 10 | H113: =+H115 -> 115.5 | I113: =+I115 -> 115.5 | J113: 100 | K113: =#REF!+#REF!+K115+#REF! ->  | L113: =#REF!+#REF!+L115+#REF! -> 
A114: Муниципальная программа "Устойчивое развитие территории
A115: Борковского сельского поселения на 2014-2016гг." | C115: 335 | D115: 03 | E115: 10 | F115: 01 0 00 00000 | H115: =H116 -> 115.5 | I115: =I116 -> 115.5 | J115: 100 | K115: =#REF!+K116+#REF! ->  | L115: =#REF!+L116+#REF! -> 
A116: Мероприятия в области противопожарной безопасности | C116: 335 | D116: =D$113 -> 03 | E116: 10 | F116: 01 0 00 25110 | H116: =H117 -> 115.5 | I116: =I117 -> 115.5 | J116: 100 | K116: =K117 ->  | L116: =L117 -> 
A117: Прочая закупка товаров,работ и услуг для муниципальных нужд | C117: 335 | D117: =D$113 -> 03 | E117: 10 | F117: 01 0 00 25110 | G117: 244 | H117: 115.5 | I117: 115.5 | J117: 100 | K117: =#REF! ->  | L117: =#REF! -> 
A118: привлеченным кредитам в российских кредитных
A119: организациях на развитие животноводства
A120: Субсидирование процентных ставок по | D120: =#REF! ->  | E120: =#REF! ->  | F120: =#REF! ->  | G120: 356
A121: привлеченным кредитам в российских кредитных
A122: организациях на развитие малых форм
A123: хозяйствования в агропромышленном комплексе
A124: Субсидирование части затрат на приобретение | D124: =#REF! ->  | E124: =#REF! ->  | F124: =#REF! ->  | G124: 357
A125: дизельного топлива, использованного на
A126: проведение сезонных сельскохозяйственных работ
A127: Субсидирование процентных ставок по кредитам, | D127: =#REF! ->  | E127: =#REF! ->  | F127: =#REF! ->  | G127: 355
A128: полученным в российских кредитных организациях
A129: на развитие животноводства и промышленного
A130: рыбоводства
A131: Субсидирование процентных ставок по кредитам, | D131: =#REF! ->  | E131: =#REF! ->  | F131: =#REF! ->  | G131: 356
A132: полученным в российских кредитных организациях,
A133: и займам, полученным в сельскохозяйственных
A134: кредитных потребительских кооперативах,
A135: на развитие малых форм хозяйствования в
A136: агропромышленном комплексе
A137: Субсидии на поддержку племенного | D137: =#REF! ->  | E137: =#REF! ->  | F137: =#REF! ->  | G137: 357
A138: животноводства
A139: Возмещение части затрат на уплату процентов | D139: =#REF! ->  | E139: =#REF! ->  | F139: =#REF! ->  | G139: 627
A140: по кредитам, полученным на срок до пяти лет
A141: в российских кредитных организациях
A142: на приобретение племенного скота, племенного
A143: материала рыб, техники и оборудования
A144: для животноводческих комплексов и организаций,
A145: осуществляющих промышленное рыбоводство
A146: Национальная экономика | D146: =#REF! ->  | E146: =#REF! ->  | F146: =#REF! ->  | G146: 628
A147: Национальная экономика | C147: 335 | D147: 04 | H147: =H148 -> 1931.7 | I147: =I148 -> 1931.7 | J147: 100
A148: Дорожное хозяйство(дорожные фонды) | C148: 335 | D148: 04 | E148: 09 | H148: =H151+H155+H158 -> 1931.7 | I148: =I151+I155+I158 -> 1931.7 | J148: 100
A149: Муниципальная программа "Устойчивое развитие территории
A150: Борковского сельского поселения на 2014-2016гг." | C150: 335 | D150: 04 | E150: 09 | F150: 01 0 00 00000 | H150: =H151+H155+H158 -> 1931.7 | I150: =I151+I155+I158 -> 1931.7 | J150: =H150/I150*100 -> 100
A151: Капитальный ремонт и ремонт автомобильных дорог общего пользования | C151: 335 | D151: 04 | E151: 09 | F151: 01 0 00 S5170 | H151: =H153 -> 658.6 | I151: =I153 -> 658.6 | J151: 100
A152: пользования местного значения в границах населенных пунктов
A153: Прочая закупка товаров,работ и услуг для муниципальных нужд | C153: 335 | D153: 04 | E153: 09 | F153: 01 0 00 S5170 | G153: 244 | H153: 658.6 | I153: 658.6 | J153: 100
A154: Содержание автомобильных дорог общего пользования
A155: местного значения в границах населенных пунктов | C155: 335 | D155: 04 | E155: 09 | F155: 01 0 00 25160 | H155: =H156 -> 150.1 | I155: =I156 -> 150.1 | J155: 100
A156: Прочая закупка товаров,работ и услуг для муниципальных нужд | C156: 335 | D156: 04 | E156: 09 | F156: 01 0 00 25160 | G156: 244 | H156: 150.1 | I156: 150.1 | J156: 100
A157: Осуществление дорожной деятельности в отношении
A158: автомобильных дорог общего пользования местного значения | C158: 335 | D158: 04 | E158: 09 | F158: 01 0 01 71520 | H158: =H159 -> 1123 | I158: =I159 -> 1123 | J158: 100
A159: Прочая закупка товаров,работ и услуг для муниципальных нужд | C159: 335 | D159: 04 | E159: 09 | F159: 01 0 01 71520 | G159: 244 | H159: 1123 | I159: 1123 | J159: 100
A160: Жилищно-коммунальное хозяйство | C160: 335 | D160: 05 | H160: =H161+H168 -> 2656.7 | I160: =I161+I168 -> 2656.7 | J160: 100
A161: Коммунальное хозяйство | C161: 335 | D161: 05 | E161: 02 | H161: =+H166 -> 337.5 | I161: =+I166 -> 337.5 | J161: 100
A162: Муниципальная программа "Устойчивое развитие территории
A163: Борковского сельского поселения на 2014-2016гг." | C163: 335 | D163: 05 | E163: 02 | F163: 01 0 00 00000 | H163: =H166 -> 337.5 | I163: =I166 -> 337.5 | J163: 100
A164: Компенсация выпадающих доходов организациям,
A165: предоставляющим населению услуги
A166: общественных бань | C166: 335 | D166: 05 | E166: 02 | F166: 01 0 00 62200 | H166: =H167 -> 337.5 | I166: =I167 -> 337.5 | J166: 100
A167: Субсидии юридическим лицам | C167: 335 | D167: 05 | E167: 02 | F167: 01 0 00 62200 | G167: 810 | H167: 337.5 | I167: 337.5 | J167: 100
A168: Благоустройство | C168: 335 | D168: 05 | E168: 03 | H168: =H172+H175+H178 -> 2319.2 | I168: =I172+I175+I178 -> 2319.2 | J168: 100
A169: Муниципальная программа "Устойчивое развитие территории
A170: Борковского сельского поселения на 2014-2016гг." | C170: 335 | D170: 05 | E170: 03 | F170: 01 0 00 00000 | H170: =H172+H175+H178 -> 2319.2 | I170: =I172+I175+I178 -> 2319.2 | J170: 100
A171: Организация уличного освещения с использованием | K171: =#REF! ->  | L171: =#REF! -> 
A172: новых технологий | C172: 335 | D172: 05 | E172: 03 | F172: 01 0 00 25190 | H172: =H174 -> 2087 | I172: =I174 -> 2087 | J172: 100
A173: Прочая закупка товаров,работ и услуг для муниципальных
A174: нужд | C174: 335 | D174: 05 | E174: 03 | F174: 01 0 00 25190 | G174: 244 | H174: 2087 | I174: 2087 | J174: 100
A175: Организация и содержание мест захоронения | C175: 335 | D175: 05 | E175: 03 | F175: 01 0 00 25220 | H175: =H177 -> 148.4 | I175: =I177 -> 148.4 | J175: 100
A176: Прочая закупка товаров,работ и услуг для муниципальных
A177: нужд | C177: 335 | D177: 05 | E177: 03 | F177: 01 0 00 25220 | G177: 244 | H177: 148.4 | I177: 148.4 | J177: 100 | K177: =K178 ->  | L177: =L178 -> 
A178: Прочие мероприятия по благоустройству | C178: 335 | D178: 05 | E178: 03 | F178: 01 0 00 25230 | H178: =H180 -> 83.8 | I178: =I180 -> 83.8 | J178: 100 | K178: =#REF! ->  | L178: =#REF! -> 
A179: Прочая закупка товаров,работ и услуг для муниципальных
A180: нужд | C180: 335 | D180: 05 | E180: 03 | F180: 01 0 00 25230 | G180: 244 | H180: 83.8 | I180: 83.8 | J180: 100
A181: Образование | C181: 335 | D181: 07 | H181: =H182+H186 -> 17.2 | I181: =I182+I186 -> 17.2 | J181: 100
A182: Молодежная политика и оздоровление детей | C182: 335 | D182: 07 | E182: 07 | H182: =H183 -> 4 | I182: =I183 -> 4 | J182: 100
A183: Прочие непрограммные расходы | C183: 335 | D183: 07 | E183: 07 | F183: 20 5 00 00000 | H183: 4 | I183: =I184 -> 4 | J183: 100
A184: Реализация мероприятий для детей и молодежи | C184: 335 | D184: 07 | E184: 07 | F184: 20 5 00 25090 | H184: 4 | I184: =I185 -> 4 | J184: 100 | K184: =K185 ->  | L184: =L185 -> 
A185: Прочая закупка товаров,работ и услуг для муниципальных нужд | C185: 335 | D185: 07 | E185: 07 | F185: 20 5 00 25090 | G185: 244 | H185: 4 | I185: 4 | J185: 100 | K185: =#REF!+#REF! ->  | L185: =#REF!+#REF! -> 
A186: Другие вопросы в области образования | C186: 335 | D186: 07 | E186: 09 | H186: =H192+H198 -> 13.2 | I186: =I192+I198 -> 13.2 | J186: 100
A187: Прочие непрограммные расходы | C187: 335 | D187: 07 | E187: 09 | F187: 20 5 00 00000 | H187: =H192+H198 -> 13.2 | I187: =I192+I198 -> 13.2 | J187: 100
A188: Мероприятия на организацию профессионального
A189: образования и дополнительного профессионального
A190: образования выборных должностных лиц,
A191: муниципальных служащих и служащих городских и сельских
A192: поселений | C192: 335 | D192: 07 | E192: 09 | F192: 20 5 00 S5370 | H192: =H193 -> 3.8 | I192: =I193 -> 3.8 | J192: 100
A193: Прочая закупка товаров,работ и услуг для муниципальных нужд | C193: 335 | D193: 07 | E193: 09 | F193: 20 5 00 S5370 | G193: 244 | H193: 3.8 | I193: 3.8 | J193: 100
A194: Субсидии бюджетам муниципальных районов и городского
A195: округа на организацию профессионального образования
A196: и дополнительного профессионального образования
A197: выборных должностных лиц, служащих и муниципальных
A198: служащих Новгородской области | C198: 335 | D198: 07 | E198: 09 | F198: 20 5 00 72280 | H198: 9.4 | I198: 9.4 | J198: 100
A199: Прочая закупка товаров,работ и услуг для муниципальных нужд | C199: 335 | D199: 07 | E199: 09 | F199: 20 5 00 72280 | G199: 244 | H199: 9.4 | I199: 9.4 | J199: 100
A200: Культура, кинематография, средства
A201: массовой информации | C201: 335 | D201: 08 | H201: =H202 -> 2390 | I201: =I202 -> 2390 | J201: 100
A202: Культура | C202: 335 | D202: 08 | E202: 01 | H202: =H205+H210+H215 -> 2390 | I202: =I205+I210+I215 -> 2390 | J202: 100 | K202: =#REF!+#REF!+#REF!+#REF! ->  | L202: =#REF!+#REF!+#REF!+#REF! -> 
A203: Прочие непрограммные расходы | C203: 335 | D203: 08 | E203: 01 | F203: 20 5 00 00000 | H203: =H205+H210+H215 -> 2390 | I203: =I205+I210+I215 -> 2390 | J203: 100
A204: Расходы на обеспечение деятельности (оказание услуг)
A205: муниципальных учреждений | C205: 335 | D205: =D$202 -> 08 | E205: 01 | F205: 20 5 00 14000 | H205: =H209 -> 2334.4 | I205: =I209 -> 2334.4 | J205: 100
A206: Обеспечение деятельности подведомственных учреждений | C206: 335 | D206: 08 | E206: 01 | F206: 20 5 00 14010 | H206: =+H209 -> 2334.4 | I206: =+I209 -> 2334.4 | J206: 100
A207: Субсидии автономным учреждениям на финансовое обеспечение
A208: муниципального задания на оказание муниципальных услуг
A209: (выполнение работ) | C209: 335 | D209: 08 | E209: 01 | F209: 20 5 00 14010 | G209: 621 | H209: 2334.4 | I209: 2334.4 | J209: 100
A210: Мероприятия в области культуры | C210: 335 | D210: 08 | E210: 01 | F210: 20 5 00 25050 | H210: =H211 -> 2 | I210: =I211 -> 2 | J210: 100
A211: Прочая закупка товаров,работ и услуг для муниципальных нужд | C211: 335 | D211: =D$202 -> 08 | E211: =E205 -> 01 | F211: 20 5 00 25050 | G211: 244 | H211: 2 | I211: 2 | J211: 100 | K211: =#REF! ->  | L211: =#REF! -> 
... 21 more rows
